bitfinex-derivatives/quotes_SOLF0:USTF0_20260222
["timestamp","ask_amount","ask_price","bid_price","bid_amount"]
[1771744049779,10.5638,85.223,85.191,20.431616]
[1771744049980,8.76495858,85.222,85.191,20.431616]
[1771744050174,8.76495858,85.221,85.191,20.431616]
[1771744050375,10.5626,85.232,85.191,20.431616]
[1771744050581,8.76002684,85.231,85.191,20.431616]
[1771744050780,8.76002684,85.23,85.191,20.431616]
[1771744050980,8.76002684,85.229,85.191,20.431616]
[1771744051282,8.76002684,85.228,85.191,20.431616]
[1771744051580,8.76002684,85.227,85.191,20.431616]
[1771744051778,8.76002684,85.226,85.191,20.431616]
[1771744051978,8.76002684,85.225,85.191,20.431616]
[1771744052179,8.76002684,85.224,85.191,20.431616]
[1771744052379,10.5626,85.232,85.191,20.431616]
[1771744052583,8.75540575,85.231,85.191,20.431616]
[1771744052781,8.75540575,85.23,85.191,20.431616]
[1771744053083,8.75540575,85.229,85.191,20.431616]
[1771744053281,8.75540575,85.228,85.191,20.431616]
[1771744053488,8.75540575,85.227,85.191,20.431616]
[1771744053678,8.75540575,85.226,85.191,20.431616]
[1771744053882,8.75540575,85.225,85.191,20.431616]
[1771744054083,10.5626,85.232,85.191,20.431616]
[1771744054287,11.68749242,85.231,85.191,20.431616]
[1771744054476,11.68749242,85.23,85.191,20.431616]
[1771744054784,11.68749242,85.229,85.191,20.431616]
[1771744054976,11.68749242,85.228,85.191,20.431616]
[1771744055176,11.68749242,85.227,85.191,20.431616]
[1771744055378,10.5626,85.232,85.191,20.431616]
[1771744055379,11.68749242,85.226,85.191,20.431616]
[1771744055577,11.68749242,85.225,85.191,20.431616]
[1771744055787,2.93414871,85.224,85.191,20.431616]
[1771744055986,2.93414871,85.223,85.191,20.431616]
[1771744056191,2.93414871,85.222,85.191,20.431616]
[1771744056392,2.93414871,85.221,85.191,20.431616]
[1771744056593,10.5626,85.232,85.191,20.431616]
[1771744056794,11.99423011,85.237,85.191,20.431616]
[1771744056795,11.68205399,85.231,85.191,20.431616]
[1771744056999,11.68205399,85.23,85.191,20.431616]
[1771744057186,11.99423011,85.237,85.201,20.43194788]
[1771744057390,2.93373017,85.236,85.201,20.43194788]
[1771744057585,2.93373017,85.235,85.201,20.43194788]
[1771744057789,2.93373017,85.234,85.201,20.43194788]
[1771744057992,10.5626,85.232,85.201,20.43194788]
[1771744058188,2.93372852,85.231,85.201,20.43194788]
[1771744058392,10.5626,85.232,85.201,20.43194788]
[1771744058594,2.93377327,85.231,85.201,20.43194788]
[1771744058794,10.5626,85.232,85.201,20.43194788]
[1771744058990,2.93377327,85.231,85.201,20.43194788]
[1771744059293,10.5626,85.232,85.201,20.43194788]
[1771744071903,11.70541355,85.237,85.154,163.07976882]
[1771744071904,10.563,85.229,85.181,20.4816814]
[1771744072104,2.93406889,85.228,85.181,20.4816814]
[1771744072304,10.563,85.229,85.181,20.4816814]
[1771744072500,2.9340702,85.228,85.181,20.4816814]
[1771744072701,10.563,85.229,85.181,20.4816814]
[1771744073003,2.4682288,85.23,85.181,20.4816814]
[1771744073004,10.5633,85.227,85.181,20.4816814]
[1771744073400,2.93410916,85.226,85.181,20.4816814]
[1771744073604,10.5633,85.227,85.181,20.4816814]
[1771744075303,2.93407146,85.226,85.181,20.4816814]
[1771744075504,10.5633,85.227,85.181,20.4816814]
[1771744075811,2.93407146,85.226,85.181,20.4816814]
[1771744076106,10.5633,85.227,85.181,20.4816814]
[1771744076308,2.93407137,85.226,85.181,20.4816814]
[1771744076607,10.5633,85.227,85.181,20.4816814]
[1771744076808,2.4682288,85.22,85.181,20.4816814]
[1771744077710,10.5642,85.219,85.181,20.4816814]
[1771744079407,2.9341948,85.218,85.181,20.4816814]
[1771744079606,10.5642,85.219,85.181,20.4816814]
[1771744079806,2.9341948,85.218,85.181,20.4816814]
[1771744080109,10.5642,85.219,85.181,20.4816814]
[1771744080411,2.93419458,85.218,85.181,20.4816814]
[1771744080610,2.93419458,85.217,85.181,20.4816814]
[1771744080806,10.5652,85.211,85.181,20.4816814]
[1771744082314,11.70541355,85.237,85.181,20.4816814]
[1771744082315,10.5656,85.208,85.181,8.14e-05]
[1771744082503,2.93449624,85.207,85.181,8.14e-05]
[1771744082706,2.93449624,85.206,85.181,8.14e-05]
[1771744082909,10.5656,85.208,85.181,8.14e-05]
[1771744083206,2.93449712,85.207,85.181,8.14e-05]
[1771744083414,2.93449712,85.206,85.181,8.14e-05]
[1771744083615,2.93449712,85.205,85.181,8.14e-05]
[1771744083911,10.5656,85.208,85.181,8.14e-05]
[1771744084103,2.93449712,85.207,85.181,8.14e-05]
[1771744084304,2.93449712,85.206,85.181,8.14e-05]
[1771744084506,2.93449712,85.205,85.181,8.14e-05]
[1771744084701,2.93449712,85.204,85.181,8.14e-05]
[1771744084905,10.5656,85.208,85.181,8.14e-05]
[1771744085113,2.93445941,85.207,85.181,8.14e-05]
[1771744085310,2.93445941,85.206,85.181,8.14e-05]
[1771744085507,2.93445941,85.205,85.181,8.14e-05]
[1771744085703,2.93445941,85.204,85.181,8.14e-05]
[1771744085915,2.93445941,85.203,85.181,8.14e-05]
[1771744086107,2.93445941,85.202,85.181,8.14e-05]
[1771744086307,2.93445941,85.201,85.181,8.14e-05]
[1771744086506,10.5656,85.208,85.181,8.14e-05]
[1771744086507,2.93445941,85.2,85.181,8.14e-05]
[1771744086713,10.5656,85.208,85.181,8.14e-05]
[1771744086914,10.5658,85.206,85.181,8.14e-05]
[1771744087115,2.93445962,85.205,85.181,8.14e-05]
[1771744087411,2.93445984,85.204,85.181,8.14e-05]
[1771744087605,2.93445984,85.203,85.181,8.14e-05]
[1771744087802,10.5658,85.206,85.181,8.14e-05]
[1771744087803,2.93445984,85.202,85.181,8.14e-05]
[1771744088010,2.93445984,85.201,85.181,8.14e-05]
[1771744088207,2.93445984,85.2,85.181,8.14e-05]
[1771744088412,2.93445984,85.199,85.181,8.14e-05]
[1771744088613,10.5658,85.206,85.181,8.14e-05]
[1771744088804,11.70846467,85.205,85.181,8.14e-05]
[1771744089011,2.93445984,85.204,85.181,8.14e-05]
[1771744089211,2.93445984,85.203,85.181,8.14e-05]
[1771744089511,2.93445984,85.202,85.181,8.14e-05]
[1771744089709,2.93445984,85.201,85.181,8.14e-05]
[1771744089910,2.93445984,85.2,85.181,8.14e-05]
[1771744090213,2.93445984,85.199,85.181,8.14e-05]
[1771744090412,2.93445967,85.198,85.181,8.14e-05]
[1771744090614,1.93756054,85.209,85.181,8.14e-05]
[1771744090808,11.7110667,85.208,85.181,8.14e-05]
[1771744091115,11.7110667,85.207,85.181,8.14e-05]
[1771744091315,11.7110667,85.206,85.181,8.14e-05]
[1771744091508,11.7110667,85.205,85.181,8.14e-05]
[1771744091709,2.93445967,85.204,85.181,8.14e-05]
[1771744091909,2.93445967,85.203,85.181,8.14e-05]
[1771744092109,2.93445967,85.202,85.181,8.14e-05]
[1771744092316,2.93445967,85.201,85.181,8.14e-05]
[1771744092512,2.93445967,85.2,85.181,8.14e-05]
[1771744092712,2.93445967,85.199,85.181,8.14e-05]
[1771744092912,2.93445967,85.198,85.181,8.14e-05]
[1771744093115,1.93756054,85.209,85.181,8.14e-05]
[1771744093316,11.71111036,85.208,85.181,8.14e-05]
[1771744093515,11.71111036,85.207,85.181,8.14e-05]
[1771744093713,2.93445944,85.206,85.181,12.20830029]
[1771744093917,4.22972407,85.221,85.181,12.20830029]
[1771744094214,11.70945225,85.22,85.181,12.20830029]
[1771744094407,11.70945225,85.219,85.181,12.20830029]
[1771744094612,11.70945225,85.218,85.181,12.20830029]
[1771744094812,11.70945225,85.217,85.181,12.20830029]
[1771744095011,11.70945225,85.216,85.181,12.20830029]
[1771744095207,11.70945225,85.216,85.18,2.4682288]
[1771744095208,2.93411929,85.215,85.191,12.20830029]
[1771744095412,4.20879181,85.233,85.191,12.20830029]
[1771744095413,2.93411929,85.214,85.191,12.20830029]
[1771744095613,4.20879181,85.233,85.191,12.20830029]
[1771744095814,11.70927389,85.232,85.191,12.20830029]
[1771744096009,11.70927389,85.231,85.191,12.20830029]
[1771744096205,11.70927389,85.23,85.191,12.20830029]
[1771744096407,11.70927389,85.229,85.191,12.20830029]
[1771744096611,11.70927389,85.228,85.191,12.20830029]
[1771744096811,11.70927389,85.227,85.191,12.20830029]
[1771744097020,11.70927389,85.226,85.191,12.20830029]
[1771744097313,11.70927389,85.225,85.191,12.20830029]
[1771744097618,11.70927389,85.224,85.191,12.20830029]
[1771744097819,4.20879181,85.233,85.191,12.20830029]
[1771744097820,11.70927389,85.223,85.191,12.20830029]
[1771744098019,11.70927389,85.222,85.191,12.20830029]
[1771744098221,11.70927389,85.221,85.191,12.20830029]
[1771744098520,11.70927389,85.22,85.191,12.20830029]
[1771744098720,11.70927389,85.219,85.191,12.20830029]
[1771744099017,2.93407082,85.218,85.191,12.20830029]
[1771744099219,4.20879181,85.233,85.191,12.20830029]
[1771744099220,2.93407082,85.217,85.191,12.20830029]
[1771744099520,2.93407082,85.216,85.191,12.20830029]
[1771744099821,2.93407082,85.215,85.191,12.20830029]
[1771744100014,4.20879181,85.233,85.191,12.20830029]
[1771744100015,2.93407082,85.214,85.191,12.20830029]
[1771744100215,2.93407082,85.214,85.154,163.07976882]
[1771744100216,10.92620883,85.245,85.201,12.20830029]
[1771744100416,11.70882689,85.244,85.201,12.20830029]
[1771744100715,11.70882689,85.243,85.201,12.20830029]
[1771744100919,11.70882689,85.242,85.201,12.20830029]
[1771744101120,11.70882689,85.241,85.201,12.20830029]
[1771744101320,11.70882689,85.24,85.201,12.20830029]
[1771744101523,11.70882689,85.239,85.201,12.20830029]
[1771744101712,11.70882689,85.238,85.201,12.20830029]
[1771744101916,2.93402079,85.237,85.201,12.20830029]
[1771744102111,2.93402079,85.236,85.201,12.20830029]
[1771744102422,2.93402079,85.235,85.201,12.20830029]
[1771744102621,2.93402079,85.234,85.201,12.20830029]
[1771744102821,2.93402079,85.233,85.201,12.20830029]
[1771744103020,2.93402079,85.232,85.201,12.20830029]
[1771744103215,4.04710176,85.252,85.201,12.20830029]
[1771744103412,4.01100784,85.25,85.201,12.20830029]
[1771744103616,4.01100784,85.248,85.201,12.20830029]
[1771744103815,4.03066618,85.246,85.201,12.20830029]
[1771744104122,11.70258191,85.245,85.201,12.20830029]
[1771744104315,11.70258191,85.244,85.201,12.20830029]
[1771744104519,11.70258191,85.243,85.201,12.20830029]
[1771744104819,11.70258191,85.242,85.201,12.20830029]
[1771744105021,11.70258191,85.241,85.201,12.20830029]
[1771744105223,11.70258191,85.24,85.201,12.20830029]
[1771744105422,11.70258191,85.239,85.201,12.20830029]
[1771744105616,11.70258191,85.238,85.201,12.20830029]
[1771744105822,11.70258191,85.237,85.201,12.20830029]
[1771744106122,2.93339132,85.236,85.201,12.20830029]
[1771744106320,2.93339132,85.235,85.201,12.20830029]
[1771744106521,2.93339132,85.234,85.201,12.20830029]
[1771744106821,2.93339132,85.233,85.201,12.20830029]
[1771744107021,2.93339132,85.232,85.201,12.20830029]
[1771744107221,2.93339132,85.231,85.201,12.20830029]
[1771744107422,11.83105111,85.242,85.201,12.20830029]
[1771744107621,4.03066618,85.246,85.201,12.20830029]
[1771744107622,11.69877124,85.241,85.201,12.20830029]
[1771744107923,11.69877124,85.24,85.201,12.20830029]
[1771744108123,11.69877124,85.239,85.201,12.20830029]
[1771744108320,11.69877124,85.238,85.201,12.20830029]
[1771744108621,2.9333914,85.237,85.201,12.20830029]
[1771744108816,2.9333914,85.236,85.201,12.20830029]
[1771744109016,4.03066618,85.246,85.201,12.20830029]
[1771744109216,11.69760861,85.245,85.201,12.20830029]
[1771744109528,2.93330951,85.244,85.201,12.20830029]
[1771744109728,2.93330951,85.243,85.201,12.20830029]
[1771744109924,2.93330951,85.242,85.201,12.20830029]
[1771744110230,4.03066618,85.246,85.201,12.20830029]
[1771744110422,2.93308751,85.245,85.201,12.20830029]
[1771744110725,2.93308751,85.244,85.201,12.20830029]
[1771744110928,2.93308751,85.243,85.201,12.20830029]
[1771744111126,2.93308751,85.242,85.201,12.20830029]
[1771744111326,4.03066618,85.246,85.201,12.20830029]
[1771744111526,2.93312492,85.245,85.201,12.20830029]
[1771744111728,2.93312492,85.244,85.201,12.20830029]
[1771744111923,2.93312492,85.243,85.201,12.20830029]
[1771744112125,2.93312492,85.242,85.201,12.20830029]
[1771744112328,4.03066618,85.246,85.201,12.20830029]
[1771744112526,2.9331247,85.245,85.201,12.20830029]
[1771744112727,2.9331247,85.244,85.201,12.20830029]
[1771744112930,2.9331247,85.243,85.201,12.20830029]
[1771744113231,4.03066618,85.246,85.201,12.20830029]
[1771744113431,2.93308703,85.245,85.201,12.20830029]
[1771744113631,2.93308703,85.244,85.201,12.20830029]
[1771744113830,4.03066618,85.246,85.201,12.20830029]
[1771744114032,2.93308689,85.245,85.201,12.20830029]
[1771744114330,4.03066618,85.246,85.201,12.20830029]
[1771744114532,2.93308689,85.245,85.201,12.20830029]
[1771744114832,4.03066618,85.246,85.201,12.20830029]
[1771744115030,2.93308689,85.245,85.201,12.20830029]
[1771744115228,4.03066618,85.246,85.201,12.20830029]
[1771744115431,2.93308667,85.245,85.201,12.20830029]
[1771744115628,4.03066618,85.246,85.201,12.20830029]
[1771744115829,2.93308667,85.245,85.201,12.20830029]
[1771744116025,4.03066618,85.246,85.202,10.5662]
[1771744116329,4.03066618,85.246,85.203,12.20830029]
[1771744116531,4.03066618,85.246,85.204,10.566]
[1771744116729,4.03066618,85.246,85.205,12.20830029]
[1771744120035,4.03066618,85.246,85.206,10.5657]
[1771744120228,4.03066618,85.246,85.207,11.48498462]
[1771744134060,2.93308425,85.245,85.207,11.48498462]
[1771744134263,4.03066618,85.246,85.207,11.48498462]
[1771744134557,2.93308434,85.245,85.207,11.48498462]
[1771744134758,4.03066618,85.246,85.207,11.48498462]
[1771744134965,2.93308434,85.245,85.207,11.48498462]
[1771744135253,2.93308434,85.244,85.207,11.48498462]
[1771744135454,4.03066618,85.246,85.207,11.48498462]
[1771744135658,2.93308434,85.245,85.207,11.48498462]
[1771744135858,6.65098836,85.275,85.22,2.46719051]
[1771744136060,6.64641893,85.267,85.221,11.48498462]
[1771744136256,15.4083877,85.266,85.221,11.48498462]
[1771744136465,15.4083877,85.265,85.221,11.48498462]
[1771744136757,8.76196877,85.264,85.221,11.48498462]
[1771744136958,8.76196877,85.263,85.221,11.48498462]
[1771744137154,8.76196877,85.262,85.221,11.48498462]
[1771744137354,8.76196877,85.261,85.221,11.48498462]
[1771744137557,6.64231792,85.249,85.194,11.48498462]
[1771744137960,6.64231792,85.249,85.201,11.48498462]
[1771744142358,6.94748405,85.247,85.201,11.48498462]
[1771744142664,6.94748405,85.245,85.201,11.48498462]
[1771744145565,8.78647195,85.244,85.201,11.48498462]
[1771744145763,6.94748405,85.245,85.201,11.48498462]
[1771744145964,15.77187519,85.244,85.201,11.48498462]
[1771744146164,8.78647195,85.243,85.201,11.48498462]
[1771744146365,8.78773911,85.242,85.201,11.48498462]
[1771744146668,6.98540324,85.244,85.201,11.48498462]
[1771744147868,2.93312369,85.243,85.201,11.48498462]
[1771744148058,2.93312369,85.242,85.201,11.48498462]
[1771744148260,2.93312369,85.241,85.201,11.48498462]
[1771744148469,2.93312369,85.24,85.201,11.48498462]
[1771744148767,6.98858461,85.238,85.18,315.48787934]
[1771744149069,6.98858461,85.236,85.189,12.27192873]
[1771744149270,6.98474092,85.234,85.189,12.27192873]
[1771744149566,2.93312369,85.233,85.201,12.27192873]
[1771744149868,2.93312369,85.232,85.201,12.27192873]
[1771744150069,2.93312369,85.231,85.201,12.27192873]
[1771744150269,2.93312369,85.23,85.201,12.27192873]
[1771744150464,2.93312369,85.229,85.201,12.27192873]
[1771744150665,2.93312369,85.228,85.201,12.27192873]
[1771744150868,6.98474092,85.251,85.201,12.27192873]
[1771744151066,7.10669537,85.249,85.201,12.27192873]
[1771744151266,7.10669537,85.247,85.201,12.27192873]
[1771744151467,10.03990835,85.246,85.201,12.27192873]
[1771744151664,2.93321298,85.245,85.201,12.27192873]
[1771744151866,2.93321298,85.244,85.201,12.27192873]
[1771744152168,2.93321298,85.243,85.201,12.27192873]
[1771744152365,2.93321298,85.242,85.201,12.27192873]
[1771744152570,2.93321298,85.241,85.201,12.27192873]
[1771744152774,2.93321298,85.24,85.201,12.27192873]
[1771744152975,2.93321298,85.239,85.201,12.27192873]
[1771744153167,2.93321298,85.238,85.201,12.27192873]
[1771744153366,2.93321298,85.237,85.201,12.27192873]
[1771744153568,2.93321298,85.236,85.201,12.27192873]
[1771744153768,2.93321298,85.235,85.201,12.27192873]
[1771744153971,2.93321298,85.234,85.201,12.27192873]
[1771744154169,2.93321298,85.233,85.201,12.27192873]
[1771744154473,2.93321298,85.232,85.201,12.27192873]
[1771744154778,2.93321298,85.231,85.201,12.27192873]
[1771744154978,2.93321298,85.23,85.201,12.27192873]
[1771744155174,2.93321298,85.229,85.201,12.27192873]
[1771744155473,2.93321298,85.228,85.201,12.27192873]
[1771744155673,7.10669537,85.246,85.201,12.27192873]
[1771744155874,8.79545802,85.245,85.201,12.27192873]
[1771744156169,8.77590197,85.244,85.201,12.27192873]
[1771744156472,2.933213,85.243,85.201,12.27192873]
[1771744156669,2.933213,85.242,85.201,12.27192873]
[1771744156869,2.933213,85.241,85.201,12.27192873]
[1771744157070,5.84268897,85.244,85.201,12.27192873]
[1771744157071,2.933213,85.24,85.201,12.27192873]
[1771744157275,2.933213,85.239,85.201,12.27192873]
[1771744157471,2.933213,85.238,85.201,12.27192873]
[1771744157671,2.933213,85.237,85.201,12.27192873]
[1771744157879,2.933213,85.236,85.201,12.27192873]
[1771744158081,2.933213,85.235,85.201,12.27192873]
[1771744158374,5.82944414,85.255,85.201,12.27192873]
[1771744158577,2.93313697,85.254,85.221,11.5128391]
[1771744158781,8.76265714,85.266,85.231,11.5128391]
[1771744164584,8.61749043,85.277,85.231,11.5128391]
[1771744170496,2.93213313,85.276,85.231,11.5128391]
[1771744170695,2.93213313,85.275,85.231,11.5128391]
[1771744170995,2.93213313,85.274,85.231,11.5128391]
[1771744171295,8.52209962,85.282,85.231,11.5128391]
[1771744171495,2.93190891,85.281,85.231,11.5128391]
[1771744171794,2.93190891,85.28,85.231,11.5128391]
[1771744171995,2.93190891,85.279,85.231,11.5128391]
[1771744172296,8.52209962,85.282,85.231,11.5128391]
[1771744172493,2.93190847,85.281,85.231,11.5128391]
[1771744172692,2.93190847,85.28,85.231,11.5128391]
[1771744172895,2.93190847,85.279,85.231,11.5128391]
[1771744173097,8.52209962,85.282,85.231,11.5128391]
[1771744173288,2.93190847,85.281,85.231,11.5128391]
[1771744173492,8.52209962,85.282,85.231,11.5128391]
[1771744177297,8.52209962,85.282,85.232,10.5624]
[1771744178198,8.52209962,85.282,85.233,11.12373745]
[1771744178400,8.52209962,85.282,85.237,11.12373745]
[1771744179300,8.52209962,85.282,85.238,10.5617]
[1771744179695,8.52209962,85.282,85.239,11.12373745]
[1771744180701,2.46486586,85.28,85.239,11.12373745]
[1771744181301,2.46486586,85.28,85.24,10.5615]
[1771744183605,2.46486586,85.28,85.241,11.12373745]
[1771744188609,2.46486586,85.26,85.241,11.12373745]
[1771744188816,2.46486586,85.27,85.241,11.12373745]
[1771744189108,10.68498824,85.27,85.241,11.12373745]
[1771744198213,8.22012238,85.27,85.241,11.12373745]
[1771744202212,2.93212877,85.269,85.241,11.12373745]
[1771744202415,8.22012238,85.27,85.241,11.12373745]
[1771744202616,2.93212877,85.269,85.241,11.12373745]
[1771744202815,8.22012238,85.27,85.241,11.12373745]
[1771744203011,2.93212877,85.269,85.241,11.12373745]
[1771744203207,2.93212885,85.268,85.241,11.12373745]
[1771744203412,2.93212885,85.267,85.241,11.12373745]
[1771744203613,10.68498824,85.27,85.241,11.12373745]
[1771744203917,2.93212893,85.269,85.241,11.12373745]
[1771744204117,2.93212893,85.268,85.241,11.12373745]
[1771744204315,2.93212893,85.267,85.241,11.12373745]
[1771744204516,2.93212893,85.266,85.241,11.12373745]
[1771744204717,10.68498824,85.27,85.241,11.12373745]
[1771744204916,2.93212893,85.269,85.241,11.12373745]
[1771744205118,2.93212893,85.268,85.241,11.12373745]
[1771744205311,2.93212893,85.267,85.241,11.12373745]
[1771744205515,2.93212893,85.266,85.241,11.12373745]
[1771744205816,10.68498824,85.27,85.241,11.12373745]
[1771744206013,2.93212893,85.269,85.241,11.12373745]
[1771744206211,10.68498824,85.27,85.241,11.12373745]
[1771744206212,2.93212893,85.268,85.241,11.12373745]
[1771744206515,2.93212893,85.267,85.241,11.12373745]
[1771744206709,2.93212893,85.266,85.241,11.12373745]
[1771744206915,2.93212893,85.265,85.241,11.12373745]
[1771744207222,2.93212893,85.264,85.241,11.12373745]
[1771744207421,10.68498824,85.27,85.241,11.12373745]
[1771744207624,2.93212893,85.269,85.241,11.12373745]
[1771744207923,10.68498824,85.27,85.241,11.12373745]
[1771744207924,2.93212893,85.268,85.241,11.12373745]
[1771744208221,10.68498824,85.27,85.241,11.12373745]
[1771744208222,2.93212893,85.267,85.241,11.12373745]
[1771744208521,2.93212893,85.266,85.241,11.12373745]
[1771744208721,2.93212893,85.265,85.241,11.12373745]
[1771744208922,10.68498824,85.27,85.241,11.12373745]
[1771744208923,2.93212893,85.264,85.241,11.12373745]
[1771744209219,2.93212893,85.263,85.241,11.12373745]
[1771744209525,8.94422388,85.262,85.241,11.12373745]
[1771744209724,10.68498824,85.27,85.241,11.12373745]
[1771744210023,11.87678423,85.269,85.241,11.12373745]
[1771744210224,11.87678423,85.268,85.241,11.12373745]
[1771744210425,11.87678423,85.267,85.241,11.12373745]
[1771744210627,11.87678423,85.266,85.241,11.12373745]
[1771744210821,11.87678423,85.265,85.241,11.12373745]
[1771744211017,11.87678423,85.264,85.241,11.12373745]
[1771744211322,11.87678423,85.263,85.241,11.12373745]
[1771744211623,8.9446553,85.262,85.241,11.12373745]
[1771744211823,8.22012238,85.27,85.241,11.12373745]
[1771744212014,11.87655678,85.269,85.241,11.12373745]
[1771744212214,11.87655678,85.268,85.241,11.12373745]
[1771744212420,11.87655678,85.267,85.241,11.12373745]
[1771744212720,11.87655678,85.266,85.241,11.12373745]
[1771744212915,11.87655678,85.265,85.241,11.12373745]
[1771744213119,11.87655678,85.264,85.241,11.12373745]
[1771744213423,11.87655678,85.263,85.241,11.12373745]
[1771744213618,8.94442785,85.262,85.241,11.12373745]
[1771744213816,8.22012238,85.27,85.241,11.12373745]
[1771744214018,11.87640289,85.269,85.241,11.12373745]
[1771744214315,11.87640289,85.268,85.241,11.12373745]
[1771744214515,11.87640289,85.267,85.241,11.12373745]
[1771744214721,11.87640289,85.266,85.241,11.12373745]
[1771744214918,11.87640289,85.265,85.241,11.12373745]
[1771744215121,11.87640289,85.264,85.241,11.12373745]
[1771744215325,11.87640289,85.263,85.241,11.12373745]
[1771744215521,8.94427476,85.262,85.241,11.12373745]
[1771744215724,8.22012238,85.27,85.241,11.12373745]
[1771744215925,11.87632624,85.269,85.241,11.12373745]
[1771744216222,11.87632624,85.268,85.241,11.12373745]
[1771744216524,11.87632624,85.267,85.241,11.12373745]
[1771744216714,8.22012238,85.27,85.241,11.12373745]
[1771744216715,11.87632624,85.266,85.241,11.12373745]
[1771744216915,11.87632624,85.265,85.241,11.12373745]
[1771744217115,11.87632624,85.264,85.241,11.12373745]
[1771744217315,9.811e-05,85.263,85.241,11.12373745]
[1771744217615,8.22012238,85.27,85.241,11.12373745]
[1771744217815,2.9321278,85.269,85.241,11.12373745]
[1771744218116,2.9321278,85.268,85.241,11.12373745]
[1771744218319,2.9321278,85.267,85.241,11.12373745]
[1771744218515,2.9321278,85.266,85.241,11.12373745]
[1771744218715,2.9321278,85.265,85.241,11.12373745]
[1771744219023,2.9321278,85.264,85.241,11.12373745]
[1771744219223,8.13413043,85.279,85.241,11.12373745]
[1771744219427,2.46486586,85.28,85.241,11.12373745]
[1771744219428,11.05076194,85.278,85.241,11.12373745]
[1771744219624,2.9321278,85.277,85.241,11.12373745]
[1771744219826,2.9321278,85.276,85.241,11.12373745]
[1771744220025,2.9321278,85.275,85.241,11.12373745]
[1771744220227,2.9321278,85.274,85.241,11.12373745]
[1771744220427,2.9321278,85.273,85.241,11.12373745]
[1771744220628,2.9321278,85.272,85.241,11.12373745]
[1771744220825,2.9321278,85.271,85.241,11.12373745]
[1771744221025,2.9321278,85.27,85.241,11.12373745]
[1771744221221,2.9321278,85.269,85.241,11.12373745]
[1771744221428,2.9321278,85.268,85.241,11.12373745]
[1771744221628,2.9321278,85.267,85.241,11.12373745]
[1771744221827,2.9321278,85.266,85.241,11.12373745]
[1771744222028,2.9321278,85.265,85.241,11.12373745]
[1771744222332,2.9321278,85.264,85.241,11.12373745]
[1771744222636,2.9321278,85.263,85.241,11.12373745]
[1771744222832,8.11863414,85.278,85.241,11.12373745]
[1771744223032,2.93212774,85.277,85.241,11.12373745]
[1771744223331,2.93212774,85.276,85.241,11.12373745]
[1771744223530,2.93212774,85.275,85.241,11.12373745]
[1771744223729,2.93212774,85.274,85.241,11.12373745]
[1771744224030,2.93212774,85.273,85.241,11.12373745]
[1771744224331,2.93212774,85.272,85.241,11.12373745]
[1771744224633,2.93212774,85.271,85.241,11.12373745]
[1771744224832,2.93212774,85.27,85.241,11.12373745]
[1771744225131,2.93212774,85.269,85.241,11.12373745]
[1771744225332,2.93212774,85.268,85.241,11.12373745]
[1771744225536,2.93212774,85.267,85.241,11.12373745]
[1771744225729,2.774e-05,85.266,85.245,11.26818552]
[1771744225930,2.46486586,85.28,85.245,11.26818552]
[1771744226131,19.0423376,85.287,85.245,11.26818552]
[1771744226330,2.46486586,85.28,85.245,11.26818552]
[1771744229535,8.89726408,85.279,85.245,11.26818552]
[1771744229835,8.89726408,85.278,85.245,11.26818552]
[1771744230035,8.89726408,85.277,85.245,11.26818552]
[1771744230237,2.46486586,85.28,85.245,11.26818552]
[1771744230440,8.89607712,85.279,85.245,11.26818552]
[1771744230738,8.89607712,85.278,85.245,11.26818552]
[1771744230936,8.89607712,85.277,85.245,11.26818552]
[1771744231132,7.81230858,85.279,85.23,11.26818552]
[1771744231438,2.46486586,85.26,85.23,11.26818552]
[1771744232434,7.81230858,85.269,85.23,11.26818552]
[1771744232643,7.84672789,85.267,85.23,11.26818552]
[1771744232938,8.89731436,85.266,85.23,11.26818552]
[1771744233139,8.89731436,85.265,85.23,11.26818552]
[1771744233342,8.89731436,85.264,85.23,11.26818552]
[1771744233643,8.89731436,85.263,85.23,11.26818552]
[1771744233834,7.84672789,85.267,85.23,11.26818552]
[1771744234034,8.89725028,85.266,85.23,11.26818552]
[1771744234238,7.84672789,85.267,85.23,11.26818552]
[1771744234239,8.89725028,85.265,85.23,11.26818552]
[1771744234439,8.89725028,85.264,85.23,11.26818552]
[1771744234640,8.89725028,85.263,85.23,11.26818552]
[1771744234842,8.89725028,85.262,85.23,11.26818552]
[1771744235045,7.84672789,85.267,85.23,11.26818552]
[1771744235243,8.89735717,85.266,85.23,11.26818552]
[1771744235545,8.89735717,85.265,85.23,11.26818552]
[1771744235743,8.89735717,85.264,85.23,11.26818552]
[1771744235940,8.89735717,85.263,85.23,11.26818552]
[1771744236142,8.89735717,85.262,85.23,11.26818552]
[1771744236340,8.89735717,85.261,85.23,11.26818552]
[1771744236644,7.84672789,85.267,85.23,11.26818552]
[1771744236941,8.8973485,85.266,85.23,11.26818552]
[1771744237141,8.8973485,85.265,85.23,11.26818552]
[1771744237338,8.8973485,85.264,85.23,11.26818552]
[1771744237535,8.8973485,85.263,85.23,11.26818552]
[1771744237733,11.82969581,85.262,85.23,11.26818552]
[1771744237933,11.82969581,85.261,85.23,11.26818552]
[1771744238141,2.93234731,85.26,85.23,11.26818552]
[1771744238341,2.93234731,85.259,85.23,11.26818552]